fUST/lending_fUST_20250819
["ID","MTS","AMOUNT","RATE_DAILY","PERIOD"]
[380092728,1755539235388,-500.0,0.00019178,2]
[380092729,1755539235416,-239.39276831,0.00019178,2]
[380092730,1755539235441,-480.0,0.00019178,2]
[380092731,1755539235464,-480.0,0.00019178,2]
[380092732,1755539235487,-480.0,0.00019178,2]
[380092733,1755539235511,-500.0,0.00019178,2]
[380092734,1755539235535,-500.0,0.00019178,2]
[380092735,1755539235559,-480.0,0.00019178,2]
[380092736,1755539235581,-500.0,0.00019178,2]
[380092737,1755539235601,-480.0,0.00019178,2]
[380092738,1755539235621,-501.60431217,0.00019178,2]
[380092739,1755539235640,-480.0,0.00019178,2]
[380092740,1755539235661,-480.0,0.00019178,2]
[380092741,1755539235682,-480.0,0.00019178,2]
[380092742,1755539235701,-480.0,0.00019178,2]
[380092743,1755539235720,-480.0,0.00019178,2]
[380092744,1755539235740,-480.0,0.00019178,2]
[380092745,1755539235760,-480.0,0.00019178,2]
[380092746,1755539235785,-480.0,0.00019178,2]
[380092747,1755539235805,-704.06,0.00019178,2]
[380092748,1755539235824,-480.0,0.00019178,2]
[380092749,1755539235845,-480.0,0.00019178,2]
[380092750,1755539235867,-480.0,0.00019178,2]
[380092751,1755539235887,-480.0,0.00019178,2]
[380092752,1755539235907,-480.0,0.00019178,2]
[380092753,1755539235928,-197.10638468,0.00019178,2]
[380092754,1755539235948,-810.87,0.00019178,2]
[380092755,1755539235969,-241.84430903,0.00019178,2]
[380092756,1755539235990,-480.0,0.00019178,2]
[380092757,1755539236011,-480.0,0.00019178,2]
[380092758,1755539236033,-480.0,0.00019178,2]
[380092759,1755539236053,-480.0,0.00019178,2]
[380092760,1755539236072,-468.15084705,0.00019178,2]
[380092761,1755539236094,-480.0,0.00019178,2]
[380092762,1755539236114,-480.0,0.00019178,2]
[380092763,1755539236134,-242.51435831,0.00019178,2]
[380092764,1755539236154,-480.0,0.00019178,2]
[380092765,1755539236174,-480.26347842,0.00019178,2]
[380092766,1755539236195,-480.0,0.00019178,2]
[380092767,1755539236215,-480.0,0.00019178,2]
[380092768,1755539236235,-480.0,0.00019178,2]
[380092769,1755539236256,-480.0,0.00019178,2]
[380092770,1755539236277,-480.0,0.00019178,2]
[380092771,1755539236297,-480.0,0.00019178,2]
[380092772,1755539236319,-480.0,0.00019178,2]
[380092773,1755539236339,-151.0,0.00019178,2]
[380092774,1755539236361,-151.0,0.00019178,2]
[380092775,1755539236381,-481.25161683,0.00019178,2]
[380092776,1755539236404,-151.0,0.00019178,2]
[380092777,1755539236426,-480.0,0.00019178,2]
[380092778,1755539236449,-151.0,0.00019178,2]
[380092779,1755539236471,-480.0,0.00019178,2]
[380092780,1755539236492,-500.0,0.00019178,2]
[380092781,1755539236514,-480.0,0.00019178,2]
[380092782,1755539236536,-500.0,0.00019178,2]
[380092783,1755539236556,-500.0,0.00019178,2]
[380092784,1755539236579,-151.0,0.00019178,2]
[380092785,1755539236601,-500.0,0.00019178,2]
[380092786,1755539236621,-500.0,0.00019178,2]
[380092787,1755539236641,-480.66981379,0.00019178,2]
[380092788,1755539236663,-500.0,0.00019178,2]
[380092789,1755539236685,-500.0,0.00019178,2]
[380092790,1755539236707,-480.0,0.00019178,2]
[380092791,1755539236727,-480.0,0.00019178,2]
[380092792,1755539236749,-480.0,0.00019178,2]
[380092793,1755539236772,-480.0,0.00019178,2]
[380092794,1755539236791,-460.51620311,0.00019178,2]
[380092795,1755539236811,-480.0,0.00019178,2]
[380092796,1755539236830,-480.0,0.00019178,2]
[380092797,1755539236852,-223.62867858,0.00019178,2]
[380092798,1755539236872,-480.0,0.00019178,2]
[380092799,1755539236893,-151.24865233,0.00019178,2]
[380092800,1755539236916,-500.0,0.00019178,2]
[380092801,1755539236936,-975.53,0.00019178,2]
[380092802,1755539236957,-151.0,0.00019178,2]
[380092803,1755539236977,-480.0,0.00019178,2]
[380092804,1755539236998,-480.0,0.00019178,2]
[380092805,1755539237115,-480.0,0.00019178,2]
[380092806,1755539237136,-283.45209881,0.00019178,2]
[380092807,1755539237156,-468.9131446,0.00019178,2]
[380092808,1755539237176,-480.0,0.00019178,2]
[380092809,1755539237196,-480.0,0.00019178,2]
[380092810,1755539237216,-481.87126382,0.00019178,2]
[380092811,1755539237237,-520.95,0.00019178,2]
[380092812,1755539237257,-2401.4,0.00019178,2]
[380092813,1755539237281,-480.0,0.00019178,2]
[380092814,1755539237302,-480.0,0.00019178,2]
[380092815,1755539237322,-480.0,0.00019178,2]
[380092816,1755539237343,-480.60605157,0.00019178,2]
[380092817,1755539237365,-481.66432838,0.00019178,2]
[380092818,1755539237386,-526.13,0.00019178,2]
[380092819,1755539237409,-481.5514655,0.00019178,2]
[380092820,1755539237430,-480.0,0.00019178,2]
[380092821,1755539237452,-977.95,0.00019178,2]
[380092822,1755539237474,-1147.82,0.00019178,2]
[380092823,1755539237497,-480.0,0.00019178,2]
[380092824,1755539237516,-482.13880631,0.00019178,2]
[380092825,1755539237538,-151.0,0.00019178,2]
[380092826,1755539237557,-151.0,0.00019178,2]
[380092827,1755539237578,-480.0,0.00019178,2]
[380092828,1755539237598,-480.0,0.00019178,2]
[380092829,1755539237618,-481.55479828,0.00019178,2]
[380092830,1755539237637,-500.0,0.00019178,2]
[380092831,1755539237657,-500.0,0.00019178,2]
[380092832,1755539237678,-1686.53,0.00019178,2]
[380092833,1755539237699,-1383.22,0.00019178,2]
[380092834,1755539237723,-480.0,0.00019178,2]
[380092835,1755539237742,-380.0,0.00019178,2]
[380092836,1755539237763,-713.96,0.00019178,2]
[380092837,1755539237785,-513.98264646,0.00019178,2]
[380092838,1755539237804,-480.0,0.00019178,2]
[380092839,1755539237823,-480.0,0.00019178,2]
[380092840,1755539237843,-480.0,0.00019178,2]
[380092841,1755539237861,-1169.23,0.00019178,2]
[380092842,1755539237880,-565.83826902,0.00019178,2]
[380092843,1755539237899,-480.0,0.00019178,2]
[380092844,1755539237918,-502.98,0.00019178,2]
[380092845,1755539237937,-480.0,0.00019178,2]
[380092846,1755539237958,-2389.88,0.00019178,2]
[380092847,1755539237978,-480.0,0.00019178,2]
[380092848,1755539237997,-480.0,0.00019178,2]
[380092849,1755539238018,-480.0,0.00019178,2]
[380092850,1755539238041,-480.0,0.00019178,2]
[380092851,1755539238063,-480.0,0.00019178,2]
[380092852,1755539238084,-480.0,0.00019178,2]
[380092853,1755539238107,-3649.79,0.00019178,2]
[380092854,1755539238128,-480.0,0.00019178,2]
[380092855,1755539238150,-480.0,0.00019178,2]
[380092856,1755539238172,-2280.18,0.00019178,2]
[380092857,1755539238193,-423.21822982,0.00019178,2]
[380092858,1755539238215,-480.0,0.00019178,2]
[380092859,1755539238236,-481.51864561,0.00019178,2]
[380092860,1755539238257,-480.0,0.00019178,2]
[380092861,1755539238280,-480.0,0.00019178,2]
[380092862,1755539238301,-480.0,0.00019178,2]
[380092863,1755539238321,-480.0,0.00019178,2]
[380092864,1755539238343,-302.57437554,0.00019178,2]
[380092865,1755539238367,-404.34671151,0.00019178,2]
[380092866,1755539238390,-480.0,0.00019178,2]
[380092867,1755539238415,-1167.56,0.00019178,2]
[380092868,1755539238436,-480.0,0.00019178,2]
[380092869,1755539238460,-480.0,0.00019178,2]
[380092870,1755539238482,-480.0,0.00019178,2]
[380092871,1755539238503,-1406.61,0.00019178,2]
[380092872,1755539238525,-481.55938239,0.00019178,2]
[380092873,1755539238545,-480.0,0.00019178,2]
[380092874,1755539238566,-480.0,0.00019178,2]
[380092875,1755539238586,-480.0,0.00019178,2]
[380092876,1755539238607,-950.44,0.00019178,2]
[380092877,1755539238627,-480.0,0.00019178,2]
[380092878,1755539238648,-480.0,0.00019178,2]
[380092879,1755539238670,-466.41528382,0.00019178,2]
[380092880,1755539238692,-570.72,0.00019178,2]
[380092881,1755539238713,-693.98,0.00019178,2]
[380092882,1755539238734,-480.0,0.00019178,2]
[380092883,1755539238755,-480.0,0.00019178,2]
[380092884,1755539238779,-480.0,0.00019178,2]
[380092885,1755539238804,-480.0,0.00019178,2]
[380092886,1755539238827,-500.0,0.00019178,2]
[380092887,1755539238848,-480.0,0.00019178,2]
[380092888,1755539238869,-480.0,0.00019178,2]
[380092889,1755539238889,-460.0,0.00019178,2]
[380092890,1755539238911,-480.0,0.00019178,2]
[380092891,1755539238934,-1046.49,0.00019178,2]
[380092892,1755539238958,-1230.31,0.00019178,2]
[380092893,1755539238988,-480.0,0.00019178,2]
[380092894,1755539239011,-480.0,0.00019178,2]
[380092895,1755539239036,-623.44607977,0.00019178,2]
[380092896,1755539239059,-480.0,0.00019178,2]
[380092897,1755539239085,-480.0,0.00019178,2]
[380092898,1755539239204,-460.38712715,0.00019178,2]
[380092899,1755539239227,-480.0,0.00019178,2]
[380092900,1755539239251,-480.0,0.00019178,2]
[380092901,1755539239276,-1267.1,0.00019178,2]
[380092902,1755539239298,-440.0,0.00019178,2]
[380092903,1755539239319,-480.0,0.00019178,2]
[380092904,1755539239342,-480.0,0.00019178,2]
[380092905,1755539239368,-480.0,0.00019178,2]
[380092906,1755539239390,-460.0,0.00019178,2]
[380092907,1755539239417,-718.56,0.00019178,2]
[380092908,1755539239440,-480.0,0.00019178,2]
[380092909,1755539239465,-480.0,0.00019178,2]
[380092910,1755539239488,-480.0,0.00019178,2]
[380092911,1755539239512,-876.66,0.00019178,2]
[380092912,1755539239536,-480.0,0.00019178,2]
[380092913,1755539239557,-480.0,0.00019178,2]
[380092914,1755539239578,-480.0,0.00019178,2]
[380092915,1755539239599,-480.0,0.00019178,2]
[380092916,1755539239620,-461.30288775,0.00019178,2]
[380092917,1755539239641,-480.0,0.00019178,2]
[380092918,1755539239663,-498.45,0.00019178,2]
[380092919,1755539239684,-480.0,0.00019178,2]
[380092920,1755539239705,-480.0,0.00019178,2]
[380092921,1755539239726,-480.0,0.00019178,2]
[380092922,1755539239749,-4160.39,0.00019178,2]
[380092923,1755539239772,-1098.51,0.00019178,2]
[380092924,1755539239792,-480.0,0.00019178,2]
[380092925,1755539239812,-443.43684932,0.00019178,2]
[380092926,1755539239831,-480.0,0.00019178,2]
[380092927,1755539239851,-805.42,0.00019178,2]
[380092928,1755539239878,-50.63344149,0.00019178,2]
[380092929,1755539240041,-429.36655851,0.00019178,2]
[380092930,1755539240061,-290.68906213,0.00019178,2]
[380092931,1755539240081,-480.37924549,0.00019178,2]
[380092932,1755539240103,-480.0,0.00019178,2]
[380092933,1755539240124,-3253.59,0.00019178,2]
[380092934,1755539240145,-480.0,0.00019178,2]
[380092935,1755539240165,-460.41957166,0.00019178,2]
[380092936,1755539240185,-480.0,0.00019178,2]
[380092937,1755539240204,-484.93570729,0.00019178,2]
[380092938,1755539240225,-480.0,0.00019178,2]
[380092939,1755539240246,-564.37,0.00019178,2]
[380092940,1755539240265,-460.0,0.00019178,2]
[380092941,1755539240287,-165.28159518,0.00019178,2]
[380092942,1755539240308,-461.25740987,0.00019178,2]
[380092943,1755539240329,-480.0,0.00019178,2]
[380092944,1755539240350,-480.0,0.00019178,2]
[380092945,1755539240370,-488.56443017,0.00019178,2]
[380092946,1755539240390,-480.0,0.00019178,2]
[380092947,1755539240415,-480.0,0.00019178,2]
[380092948,1755539240436,-460.0,0.00019178,2]
[380092949,1755539240458,-543.17,0.00019178,2]
[380092950,1755539240479,-165.15287875,0.00019178,2]
[380092951,1755539240501,-480.0,0.00019178,2]
[380092952,1755539240521,-480.0,0.00019178,2]
[380092953,1755539240541,-480.0,0.00019178,2]
[380092954,1755539240561,-480.0,0.00019178,2]
[380092955,1755539240582,-480.0,0.00019178,2]
[380092956,1755539240602,-480.0,0.00019178,2]
[380092957,1755539240623,-480.0,0.00019178,2]
[380092958,1755539240643,-480.0,0.00019178,2]
[380092959,1755539240662,-480.0,0.00019178,2]
[380092960,1755539240683,-480.0,0.00019178,2]
[380092961,1755539240702,-233.93880726,0.00019178,2]
[380092962,1755539240722,-480.0,0.00019178,2]
[380092963,1755539240742,-481.32303006,0.00019178,2]
[380092964,1755539240762,-151.0,0.00019178,2]
[380092965,1755539240785,-480.0,0.00019178,2]
[380092966,1755539240805,-151.0,0.00019178,2]
[380092967,1755539240829,-480.0,0.00019178,2]
[380092968,1755539240849,-480.0,0.00019178,2]
[380092969,1755539240869,-480.0,0.00019178,2]
[380092970,1755539240888,-1265.64,0.00019178,2]
[380092971,1755539241002,-460.0,0.00019178,2]
[380092972,1755539241025,-480.0,0.00019178,2]
[380092973,1755539241049,-678.73,0.00019178,2]
[380092974,1755539241072,-480.0,0.00019178,2]
[380092975,1755539241095,-2046.7,0.00019178,2]
[380092976,1755539241117,-480.0,0.00019178,2]
[380092977,1755539241137,-480.0,0.00019178,2]
[380092978,1755539241158,-480.0,0.00019178,2]
[380092979,1755539241179,-695.93,0.00019178,2]
[380092980,1755539241200,-480.0,0.00019178,2]
[380092981,1755539241219,-460.59057685,0.00019178,2]
[380092982,1755539241239,-346.55187185,0.00019178,2]
[380092983,1755539241259,-480.0,0.00019178,2]
[380092984,1755539241280,-480.0,0.00019178,2]
[380092985,1755539241301,-480.0,0.00019178,2]
[380092986,1755539241322,-480.0,0.00019178,2]
[380092987,1755539241342,-2267.11,0.00019178,2]
[380092988,1755539241362,-480.0,0.00019178,2]
[380092989,1755539241382,-480.0,0.00019178,2]
[380092990,1755539241403,-480.0,0.00019178,2]
[380092991,1755539241428,-480.0,0.00019178,2]
[380092992,1755539241447,-480.0,0.00019178,2]
[380092993,1755539241470,-500.86,0.00019178,2]
[380092994,1755539241489,-461.47091946,0.00019178,2]
[380092995,1755539241510,-518.32,0.00019178,2]
[380092996,1755539241530,-480.0,0.00019178,2]
[380092997,1755539241549,-480.0,0.00019178,2]
[380092998,1755539241568,-470.87570729,0.00019178,2]
[380092999,1755539241588,-480.94337573,0.00019178,2]
[380093000,1755539241609,-480.0,0.00019178,2]
[380093001,1755539241629,-480.0,0.00019178,2]
[380093002,1755539241649,-49418.66574845,0.00019178,2]
[380093003,1755539242315,-480.0,0.00019178,2]
[380093004,1755539242339,-480.0,0.00019178,2]
[380093005,1755539242360,-581.33425155,0.00019178,2]
[380093006,1755539242382,-500.0,0.00019178,2]
[380093007,1755539242403,-150.71,0.000192,2]
[380093008,1755539242429,-514.47052907,0.00019215,2]
[380093009,1755539242452,-277.0,0.00019324,2]
[380093010,1755539242473,-100000.0,0.00019329,2]
[380093011,1755539242498,-277.0,0.00019339,2]
[380093012,1755539242520,-514.47052907,0.00019352,2]
[380093013,1755539242541,-277.0,0.00019395,2]
[380093014,1755539242562,-277.0,0.00019423,2]
[380093015,1755539242583,-883.645,0.00019451,2]
[380093016,1755539242602,-198.63598254,0.00019452,2]
[380093017,1755539242623,-567.94107977,0.00019452,2]
[380093018,1755539242643,-152.61271,0.00019452,2]
[380093019,1755539242664,-151.0,0.00019452,2]
[380093020,1755539242686,-500.0,0.00019452,2]
[380093021,1755539242707,-151.0,0.00019452,2]
[380093022,1755539242727,-198.0,0.00019452,2]
[380093023,1755539242746,-151.0,0.00019452,2]
[380093024,1755539242766,-151.0,0.00019452,2]
[380093025,1755539242877,-151.0,0.00019452,2]
[380093026,1755539242898,-151.0,0.00019452,2]
[380093027,1755539242917,-500.0,0.00019452,2]
[380093028,1755539242937,-500.0,0.00019452,2]
[380093029,1755539242956,-606.88473087,0.00019452,2]
[380093030,1755539242977,-500.0,0.00019452,2]
[380093031,1755539242997,-500.0,0.00019452,2]
[380093032,1755539243017,-500.0,0.00019452,2]
[380093033,1755539243037,-211.94116543,0.00019452,2]
[380093034,1755539243057,-505.73300652,0.00019452,2]
[380093035,1755539243078,-500.0,0.00019452,2]
[380093036,1755539243099,-500.0,0.00019452,2]
[380093037,1755539243120,-566.59,0.00019452,2]
[380093038,1755539243140,-314.66651881,0.00019452,2]
[380093039,1755539243163,-480.0,0.00019452,2]
[380093040,1755539243184,-480.0,0.00019452,2]
[380093041,1755539243206,-480.0,0.00019452,2]
[380093042,1755539243227,-480.0,0.00019452,2]
[380093043,1755539243248,-480.0,0.00019452,2]
[380093044,1755539243269,-460.0,0.00019452,2]
[380093045,1755539243293,-480.0,0.00019452,2]
[380093046,1755539243313,-480.0,0.00019452,2]
[380093047,1755539243333,-480.0,0.00019452,2]
[380093048,1755539243354,-480.0,0.00019452,2]
[380093049,1755539243373,-519.15350233,0.00019452,2]
[380093050,1755539243393,-555.42590505,0.00019452,2]
[380093051,1755539243415,-423.38509182,0.00019452,2]
[380093052,1755539243435,-480.0,0.00019452,2]
[380093053,1755539243457,-480.0,0.00019452,2]
[380093054,1755539243478,-480.0,0.00019452,2]
[380093055,1755539243499,-480.0,0.00019452,2]
[380093056,1755539243519,-480.0,0.00019452,2]
[380093057,1755539243542,-480.0,0.00019452,2]
[380093058,1755539243561,-480.0,0.00019452,2]
[380093059,1755539243580,-615.95060575,0.00019452,2]
[380093060,1755539243600,-480.0,0.00019452,2]
[380093061,1755539243619,-480.0,0.00019452,2]
[380093062,1755539243640,-480.0,0.00019452,2]
[380093063,1755539243661,-1068.83,0.00019452,2]
[380093064,1755539243682,-464.24593285,0.00019452,2]
[380093065,1755539243704,-294.87831751,0.00019452,2]
[380093066,1755539243730,-480.0,0.00019452,2]
[380093067,1755539243751,-480.0,0.00019452,2]
[380093068,1755539243771,-480.0,0.00019452,2]
[380093069,1755539243792,-480.0,0.00019452,2]
[380093070,1755539243812,-480.0,0.00019452,2]
[380093071,1755539243832,-787.26,0.00019452,2]
[380093072,1755539243852,-160.4446599,0.00019452,2]
[380093073,1755539243872,-480.0,0.00019452,2]
[380093074,1755539243892,-480.0,0.00019452,2]
[380093075,1755539243914,-374.431923,0.00019452,2]
[380093076,1755539243934,-151.0,0.00019452,2]
[380093077,1755539243954,-480.0,0.00019452,2]
[380093078,1755539243974,-374.431923,0.00019452,2]
[380093079,1755539243994,-480.0,0.00019452,2]
[380093080,1755539244016,-480.0,0.00019452,2]
[380093081,1755539244039,-484.71289024,0.00019452,2]
[380093082,1755539244059,-462.73999888,0.00019452,2]
[380093083,1755539244082,-480.0,0.00019452,2]
[380093084,1755539244102,-480.0,0.00019452,2]
[380093085,1755539244124,-151.0,0.00019452,2]
[380093086,1755539244145,-480.0,0.00019452,2]
[380093087,1755539244166,-151.0,0.00019452,2]
[380093088,1755539244186,-480.0,0.00019452,2]
[380093089,1755539244206,-480.0,0.00019452,2]
[380093090,1755539244227,-480.0,0.00019452,2]
[380093091,1755539244247,-480.0,0.00019452,2]
[380093092,1755539244267,-480.0,0.00019452,2]
[380093093,1755539244290,-151.0,0.00019452,2]
[380093094,1755539244311,-480.0,0.00019452,2]
[380093095,1755539244331,-480.0,0.00019452,2]
[380093096,1755539244352,-480.0,0.00019452,2]
[380093097,1755539244372,-480.0,0.00019452,2]
[380093098,1755539244393,-480.0,0.00019452,2]
[380093099,1755539244416,-480.0,0.00019452,2]
[380093100,1755539244436,-441.85644383,0.00019452,2]
[380093101,1755539244457,-480.0,0.00019452,2]
[380093102,1755539244477,-480.0,0.00019452,2]
[380093103,1755539244500,-480.0,0.00019452,2]
[380093104,1755539244521,-480.0,0.00019452,2]
[380093105,1755539244542,-480.0,0.00019452,2]
[380093106,1755539244562,-480.0,0.00019452,2]
[380093107,1755539244675,-480.0,0.00019452,2]
[380093108,1755539244699,-800.07,0.00019452,2]
[380093109,1755539244720,-382.17961349,0.00019452,2]
[380093110,1755539244741,-480.0,0.00019452,2]
[380093111,1755539244763,-480.0,0.00019452,2]
[380093112,1755539244791,-480.0,0.00019452,2]
[380093113,1755539244814,-240.97072022,0.00019452,2]
[380093114,1755539244840,-480.0,0.00019452,2]
[380093115,1755539244862,-480.0,0.00019452,2]
[380093116,1755539244884,-429.5202541,0.00019452,2]
[380093117,1755539244905,-704.06,0.00019452,2]
[380093118,1755539244926,-151.0,0.00019452,2]
[380093119,1755539244946,-480.0,0.00019452,2]
[380093120,1755539244967,-480.0,0.00019452,2]
[380093121,1755539244988,-151.0,0.00019452,2]
[380093122,1755539245010,-810.87,0.00019452,2]
[380093123,1755539245036,-151.0,0.00019452,2]
[380093124,1755539245058,-480.0,0.00019452,2]
[380093125,1755539245079,-480.0,0.00019452,2]
[380093126,1755539245101,-480.0,0.00019452,2]
[380093127,1755539245123,-153.114729,0.00019452,2]
[380093128,1755539245145,-484.054568,0.00019452,2]
[380093129,1755539245167,-480.0,0.00019452,2]
[380093130,1755539245192,-484.054568,0.00019452,2]
[380093131,1755539245213,-480.0,0.00019452,2]
[380093132,1755539245237,-483.21546253,0.00019452,2]
[380093133,1755539245263,-480.0,0.00019452,2]
[380093134,1755539245288,-480.0,0.00019452,2]
[380093135,1755539245309,-480.0,0.00019452,2]
[380093136,1755539245331,-480.0,0.00019452,2]
[380093137,1755539245353,-480.0,0.00019452,2]
[380093138,1755539245377,-480.0,0.00019452,2]
[380093139,1755539245399,-480.0,0.00019452,2]
[380093140,1755539245425,-480.0,0.00019452,2]
[380093141,1755539245447,-480.0,0.00019452,2]
[380093142,1755539245468,-480.0,0.00019452,2]
[380093143,1755539245491,-312.946588,0.00019452,2]
[380093144,1755539245511,-151.0,0.00019452,2]
[380093145,1755539245535,-235.41514,0.00019452,2]
[380093146,1755539245556,-312.946588,0.00019452,2]
[380093147,1755539245578,-975.53,0.00019452,2]
[380093148,1755539245599,-151.0,0.00019452,2]
[380093149,1755539245620,-480.0,0.00019452,2]
[380093150,1755539245640,-235.41514,0.00019452,2]
[380093151,1755539245660,-151.0,0.00019452,2]
[380093152,1755539245682,-480.0,0.00019452,2]
[380093153,1755539245702,-151.0,0.00019452,2]
[380093154,1755539245722,-151.0,0.00019452,2]
[380093155,1755539245743,-520.95,0.00019452,2]
[380093156,1755539245764,-151.0,0.00019452,2]
[380093157,1755539245790,-2401.4,0.00019452,2]
[380093158,1755539245810,-151.0,0.00019452,2]
[380093159,1755539245830,-480.0,0.00019452,2]
[380093160,1755539245851,-480.0,0.00019452,2]
[380093161,1755539245872,-526.13,0.00019452,2]
[380093162,1755539245897,-977.95,0.00019452,2]
[380093163,1755539245922,-1147.82,0.00019452,2]
[380093164,1755539245942,-480.0,0.00019452,2]
[380093165,1755539245964,-480.0,0.00019452,2]
[380093166,1755539245984,-221.949009,0.00019452,2]
[380093167,1755539246005,-1686.53,0.00019452,2]
[380093168,1755539246030,-1383.22,0.00019452,2]
[380093169,1755539246050,-480.0,0.00019452,2]
[380093170,1755539246070,-480.0,0.00019452,2]
[380093171,1755539246091,-151.0,0.00019452,2]
[380093172,1755539246111,-151.0,0.00019452,2]
[380093173,1755539246132,-151.0,0.00019452,2]
[380093174,1755539246152,-1169.23,0.00019452,2]
[380093175,1755539246173,-480.0,0.00019452,2]
[380093176,1755539246194,-480.0,0.00019452,2]
[380093177,1755539246215,-151.0,0.00019452,2]
[380093178,1755539246234,-502.98,0.00019452,2]
[380093179,1755539246255,-151.0,0.00019452,2]
[380093180,1755539246278,-2389.88,0.00019452,2]
[380093181,1755539246298,-480.0,0.00019452,2]
[380093182,1755539246318,-375.42503314,0.00019452,2]
[380093183,1755539246341,-480.0,0.00019452,2]
[380093184,1755539246363,-480.0,0.00019452,2]
[380093185,1755539246469,-3649.79,0.00019452,2]
[380093186,1755539246493,-480.0,0.00019452,2]
[380093187,1755539246516,-480.0,0.00019452,2]
[380093188,1755539246537,-480.0,0.00019452,2]
[380093189,1755539246558,-185.969943,0.00019452,2]
[380093190,1755539246578,-480.0,0.00019452,2]
[380093191,1755539246598,-480.0,0.00019452,2]
[380093192,1755539246619,-185.969943,0.00019452,2]
[380093193,1755539246639,-151.0,0.00019452,2]
[380093194,1755539246659,-480.0,0.00019452,2]
[380093195,1755539246682,-480.0,0.00019452,2]
[380093196,1755539246703,-1167.56,0.00019452,2]
[380093197,1755539246723,-151.0,0.00019452,2]
[380093198,1755539246743,-231.000468,0.00019452,2]
[380093199,1755539246764,-480.0,0.00019452,2]
[380093200,1755539246785,-480.0,0.00019452,2]
[380093201,1755539246807,-1406.61,0.00019452,2]
[380093202,1755539246830,-231.000468,0.00019452,2]
[380093203,1755539246850,-151.0,0.00019452,2]
[380093204,1755539246870,-151.0,0.00019452,2]
[380093205,1755539246891,-406.756558,0.00019452,2]
[380093206,1755539246914,-151.0,0.00019452,2]
[380093207,1755539246936,-480.0,0.00019452,2]
[380093208,1755539246962,-480.0,0.00019452,2]
[380093209,1755539246983,-950.44,0.00019452,2]
[380093210,1755539247004,-480.0,0.00019452,2]
[380093211,1755539247027,-165.41063649,0.00019452,2]
[380093212,1755539247047,-570.72,0.00019452,2]
[380093213,1755539247067,-480.0,0.00019452,2]
[380093214,1755539247089,-693.98,0.00019452,2]
[380093215,1755539247110,-480.0,0.00019452,2]
[380093216,1755539247131,-406.756558,0.00019452,2]
[380093217,1755539247151,-151.0,0.00019452,2]
[380093218,1755539247172,-151.0,0.00019452,2]
[380093219,1755539247192,-480.0,0.00019452,2]
[380093220,1755539247213,-480.0,0.00019452,2]
[380093221,1755539247234,-480.0,0.00019452,2]
[380093222,1755539247256,-1046.49,0.00019452,2]
[380093223,1755539247278,-1230.31,0.00019452,2]
[380093224,1755539247300,-480.0,0.00019452,2]
[380093225,1755539247321,-480.0,0.00019452,2]
[380093226,1755539247343,-480.0,0.00019452,2]
[380093227,1755539247366,-1267.1,0.00019452,2]